fUST/lending_fUST_20240321
["ID","MTS","AMOUNT","RATE_DAILY","PERIOD"]
[319848997,1710999044455,-500.0,0.00061595,120]
[319848999,1710999044464,-1542.78,0.00061595,120]
[319849001,1710999044474,-500.0,0.00061595,120]
[319849003,1710999044483,-500.0,0.00061595,120]
[319849005,1710999044493,-878.7,0.00061595,120]
[319849007,1710999044502,-878.38,0.00061595,120]
[319849009,1710999044511,-1056.16,0.00061595,120]
[319849011,1710999044520,-500.0,0.00061595,120]
[319849013,1710999044530,-500.0,0.00061595,120]
[319849015,1710999044539,-500.0,0.00061595,120]
[319849017,1710999044548,-1137.5,0.00061595,120]
[319849018,1710999044557,-500.0,0.00061595,120]
[319849019,1710999044566,-500.0,0.00061595,120]
[319849020,1710999044575,-1514.56,0.00061595,120]
[319849021,1710999044584,-579.78,0.00061595,120]
[319849022,1710999044593,-500.0,0.00061595,120]
[319849023,1710999044605,-535.16,0.00061595,120]
[319849024,1710999044614,-10710.12,0.00061596,90]
[319849025,1710999044623,-500.0,0.00061596,21]
[319849026,1710999044632,-735.0,0.00061596,120]
[319849027,1710999044641,-1321.76,0.00061596,120]
[319849028,1710999044655,-526.22,0.00061596,120]
[319849029,1710999044664,-941.32258316,0.00061618,2]
[319849030,1710999044673,-1000.0,0.00061703,120]
[319849031,1710999044682,-202.03647067,0.00061997,7]
[319849032,1710999044693,-165.93181549,0.00061997,7]
[319849033,1710999044702,-264.87952772,0.00061997,2]
[319849034,1710999044711,-210.51063616,0.00061997,7]
[319849035,1710999044720,-269.65828487,0.00061997,2]
[319849036,1710999044731,-2910.56901171,0.00061998,4]
[319849037,1710999044740,-4729.28141109,0.00061999,7]
[319849038,1710999044750,-3376.14170555,0.00062,120]
[319849039,1710999044759,-5989.13535257,0.00062,120]
[319849040,1710999044768,-1000.0,0.0006232,120]
[319849041,1710999044778,-500.0,0.00062675,120]
[319849042,1710999044787,-500.0,0.00062676,120]
[319849043,1710999044795,-500.0,0.00062676,120]
[319849044,1710999044805,-500.0,0.00062676,120]
[319849045,1710999044815,-500.0,0.00062676,120]
[319849046,1710999044824,-500.0,0.00062676,120]
[319849047,1710999044833,-500.0,0.00062676,120]
[319849048,1710999044842,-250.0,0.00062676,120]
[319849049,1710999044851,-500.0,0.00062676,120]
[319849050,1710999044862,-292.50009999,0.00062738,7]
[319849051,1710999044871,-782.81044717,0.00062739,7]
[319849052,1710999044880,-1000.0,0.00062943,120]
[319849053,1710999044889,-208.34681873,0.00063009,7]
[319849054,1710999044898,-500.0,0.00063012,120]
[319849055,1710999044907,-500.0,0.00063013,120]
[319849056,1710999044916,-500.0,0.00063013,120]
[319849057,1710999044926,-4730.87,0.00063013,120]
[319849058,1710999044935,-1499.97,0.00063013,120]
[319849059,1710999044945,-1934.97,0.00063013,120]
[319849060,1710999044954,-2500.46,0.00063013,120]
[319849061,1710999044963,-1000.0,0.00063573,120]
[319849062,1710999044972,-1155.16,0.00063858,120]
[319849064,1710999044981,-500.0,0.00063858,120]
[319849066,1710999044991,-500.0,0.00063858,120]
[319849068,1710999045000,-500.0,0.00063858,120]
[319849070,1710999045009,-500.0,0.00063858,120]
[319849072,1710999045018,-237.90631226,0.00063858,120]
[319849074,1710999045026,-500.0,0.00063858,120]
[319849076,1710999045035,-1000.0,0.00063858,120]
[319849078,1710999045045,-500.0,0.00063858,120]
[319849080,1710999045054,-166.965572,0.00063858,120]
[319849081,1710999045063,-500.0,0.00063858,120]
[319849083,1710999045073,-701.54,0.00063858,120]
[319849086,1710999045082,-166.965572,0.00063858,120]
[319849087,1710999045092,-567.73,0.00063858,120]
[319849089,1710999045101,-500.84502312,0.00063858,120]
[319849091,1710999045113,-846.409292,0.00063858,120]
[319849093,1710999045123,-846.409292,0.00063858,120]
[319849095,1710999045132,-1983.99,0.00063858,120]
[319849097,1710999045141,-544.99894201,0.00063858,120]
[319849099,1710999045151,-500.0,0.00063858,120]
[319849101,1710999045160,-3960.13,0.00063858,120]
[319849103,1710999045169,-500.0,0.00063858,120]
[319849105,1710999045179,-500.0,0.00063858,120]
[319849107,1710999045188,-500.0,0.00063858,120]
[319849109,1710999045197,-1499.950788,0.00063858,120]
[319849111,1710999045206,-500.0,0.00063858,120]
[319849113,1710999045215,-1499.950788,0.00063858,120]
[319849115,1710999045225,-500.0,0.00063858,120]
[319849117,1710999045234,-1075.843231,0.00063858,120]
[319849119,1710999045243,-500.0,0.00063858,120]
[319849122,1710999045253,-1075.843231,0.00063858,120]
[319849124,1710999045262,-500.0,0.00063858,120]
[319849126,1710999045270,-636.88,0.00063858,120]
[319849128,1710999045279,-500.0,0.00063858,120]
[319849129,1710999045289,-500.0,0.00063858,120]
[319849131,1710999045298,-1375.73,0.00063858,120]
[319849133,1710999045307,-500.0,0.00063858,120]
[319849135,1710999045316,-1000.0,0.00064208,120]
[319849137,1710999045324,-980.52,0.00064335,120]
[319849139,1710999045334,-500.0,0.00064335,120]
[319849141,1710999045343,-1542.78,0.00064335,120]
[319849143,1710999045352,-500.0,0.00064335,120]
[319849145,1710999045363,-500.0,0.00064335,120]
[319849147,1710999045372,-878.7,0.00064335,120]
[319849149,1710999045381,-878.38,0.00064335,120]
[319849151,1710999045390,-1056.16,0.00064335,120]
[319849153,1710999045399,-500.0,0.00064335,120]
[319849155,1710999045408,-500.0,0.00064335,120]
[319849157,1710999045417,-500.0,0.00064335,120]
[319849159,1710999045427,-1137.5,0.00064335,120]
[319849161,1710999045436,-500.0,0.00064335,120]
[319849163,1710999045445,-1514.56,0.00064335,120]
[319849165,1710999045454,-579.78,0.00064335,120]
[319849166,1710999045463,-500.0,0.00064335,120]
[319849167,1710999045473,-535.16,0.00064335,120]
[319849168,1710999045482,-10710.12,0.00064336,90]
[319849169,1710999045491,-509.7778049,0.00064336,21]
[319849171,1710999045501,-735.0,0.00064336,120]
[319849173,1710999045510,-1321.76,0.00064336,120]
[319849175,1710999045519,-526.22,0.00064336,120]
[319849177,1710999045528,-500.0,0.00064753,120]
[319849180,1710999045538,-336.65,0.00064753,120]
[319849182,1710999045547,-1000.0,0.0006485,120]
[319849184,1710999045556,-500.0,0.00064879,120]
[319849186,1710999045565,-500.0,0.00064879,120]
[319849188,1710999045575,-500.0,0.00064879,120]
[319849190,1710999045584,-500.0,0.00064879,120]
[319849192,1710999045593,-500.0,0.00064879,120]
[319849195,1710999045602,-500.0,0.00064879,120]
[319849197,1710999045613,-319.91,0.00064879,120]
[319849200,1710999045622,-261.15285196,0.00064978,7]
[319849202,1710999045633,-1196.38721552,0.00064979,7]
[319849204,1710999045642,-151.0,0.0006498,120]
[319849206,1710999045653,-166.965572,0.0006498,120]
[319849207,1710999045662,-166.965572,0.0006498,120]
[319849209,1710999045671,-1003.0,0.00065,120]
[319849211,1710999045683,-2000.0,0.00065,30]
[319849213,1710999045692,-2000.0,0.00065,30]
[319849227,1710999045771,-171.94382118,0.00065095,120]
[319849229,1710999045781,-500.0,0.00065416,120]
[319849231,1710999045790,-500.0,0.00065416,120]
[319849233,1710999045800,-500.0,0.00065416,120]
[319849235,1710999045809,-500.0,0.00065416,120]
[319849237,1710999045817,-500.0,0.00065416,120]
[319849239,1710999045826,-250.0,0.00065416,120]
[319849241,1710999045835,-500.0,0.00065416,120]
[319849243,1710999045845,-1000.0,0.00065499,120]
[319849245,1710999045856,-500.0,0.00065753,120]
[319849247,1710999045865,-500.0,0.00065753,120]
[319849249,1710999045875,-4730.87,0.00065753,120]
[319849251,1710999045884,-1499.97,0.00065753,120]
[319849253,1710999045893,-1934.97,0.00065753,120]
[319849255,1710999045902,-2500.46,0.00065753,120]
[319849257,1710999045911,-846.409292,0.00065753,120]
[319849259,1710999045921,-846.409292,0.00065753,120]
[319849261,1710999045930,-500.0,0.00065753,2]
[319849263,1710999045940,-1499.950788,0.00065753,120]
[319849265,1710999045949,-1499.950788,0.00065753,120]
[319849267,1710999045959,-1075.843231,0.00065753,120]
[319849269,1710999045969,-1075.843231,0.00065753,120]
[319849271,1710999045979,-500.0,0.00065753,120]
[319849273,1710999045989,-12712.02375356,0.0006588,120]
[319849275,1710999045998,-151.0,0.0006588,120]
[319849277,1710999046008,-1000.0,0.00066154,120]
[319849279,1710999046017,-1155.16,0.00066597,120]
[319849281,1710999046027,-500.0,0.00066597,120]
[319849283,1710999046036,-500.0,0.00066597,120]
[319849285,1710999046045,-500.0,0.00066597,120]
[319849287,1710999046054,-529.22355321,0.00066597,120]
[319849289,1710999046063,-1000.0,0.00066597,120]
[319849291,1710999046072,-154.75929437,0.00066597,120]
[319849292,1710999046081,-166.965572,0.00066597,120]
[319849294,1710999046090,-500.0,0.00066597,120]
[319849296,1710999046099,-701.54,0.00066597,120]
[319849299,1710999046111,-166.965572,0.00066597,120]
[319849301,1710999046120,-567.73,0.00066597,120]
[319849302,1710999046129,-500.0,0.00066597,120]
[319849304,1710999046138,-500.0,0.00066597,120]
[319849306,1710999046147,-500.0,0.00066597,120]
[319849308,1710999046157,-505.1968572,0.00066597,120]
[319849310,1710999046166,-500.0,0.00066597,120]
[319849312,1710999046177,-636.88,0.00066597,120]
[319849314,1710999046186,-215.62132408,0.00066597,120]
[319849316,1710999046196,-1983.99,0.00066598,120]
[319849318,1710999046206,-3960.13,0.00066598,120]
[319849320,1710999046215,-500.0,0.00066598,120]
[319849322,1710999046225,-500.0,0.00066598,120]
[319849324,1710999046236,-500.0,0.00066598,120]
[319849327,1710999046246,-500.0,0.00066598,120]
[319849328,1710999046256,-1375.73,0.00066598,120]
[319849331,1710999046269,-72017.11185566,0.00066666,2]
[319849333,1710999046279,-151.0,0.00066666,120]
[319849335,1710999046288,-166.965572,0.00066666,120]
[319849337,1710999046297,-166.965572,0.00066666,120]
[319849339,1710999046306,-846.409292,0.00066666,120]
[319849341,1710999046315,-846.409292,0.00066666,120]
[319849343,1710999046324,-1499.950788,0.00066666,120]
[319849345,1710999046333,-1499.950788,0.00066666,120]
[319849347,1710999046342,-1075.843231,0.00066666,120]
[319849349,1710999046351,-1075.843231,0.00066666,120]
[319849351,1710999046364,-1000.0,0.00066815,120]
[319849353,1710999046373,-980.52,0.00067075,120]
[319849354,1710999046382,-1542.78,0.00067075,120]
[319849357,1710999046392,-500.0,0.00067075,120]
[319849358,1710999046401,-878.7,0.00067075,120]
[319849360,1710999046410,-878.38,0.00067075,120]
[319849362,1710999046419,-1056.16,0.00067075,120]
[319849365,1710999046429,-500.0,0.00067075,120]
[319849366,1710999046438,-500.0,0.00067075,120]
[319849368,1710999046447,-500.0,0.00067075,120]
[319849371,1710999046456,-1137.5,0.00067075,120]
[319849374,1710999046465,-189.7,0.00067075,120]
[319849376,1710999046474,-1514.56,0.00067075,120]
[319849379,1710999046483,-579.78,0.00067075,120]
[319849382,1710999046492,-500.0,0.00067075,120]
[319849385,1710999046502,-535.16,0.00067075,120]
[319849388,1710999046511,-10710.12,0.00067076,90]
[319849389,1710999046520,-735.0,0.00067076,120]
[319849391,1710999046530,-1321.76,0.00067076,120]
[319849394,1710999046544,-526.22,0.00067076,120]
[319849396,1710999046553,-1000.0,0.00067484,120]
[319849398,1710999046562,-155.0,0.00067489,7]
[319849399,1710999046571,-474.38857894,0.00068155,120]
[319849400,1710999046580,-500.0,0.00068155,120]
[319849401,1710999046591,-500.0,0.00068155,120]
[319849402,1710999046599,-500.0,0.00068155,120]
[319849403,1710999046610,-376.61253395,0.00068155,120]
[319849404,1710999046618,-500.0,0.00068155,120]
[319849405,1710999046628,-1000.0,0.00068158,120]
[319849406,1710999046639,-500.0,0.00068493,120]
[319849407,1710999046656,-500.0,0.00068493,120]
[319849408,1710999046668,-4730.87,0.00068493,120]
[319849409,1710999046678,-1499.97,0.00068493,120]
[319849410,1710999046687,-1934.97,0.00068493,120]
[319849411,1710999046696,-2500.46,0.00068493,120]
[319849412,1710999046705,-1000.0,0.0006884,120]
[319849413,1710999046714,-155.0,0.00068859,7]
[319849414,1710999046722,-257.16887268,0.00069,30]
[319849415,1710999046731,-1155.16,0.00069337,120]
[319849416,1710999046741,-500.0,0.00069337,120]
[319849417,1710999046750,-500.0,0.00069337,120]
[319849418,1710999046759,-500.0,0.00069337,120]
[319849419,1710999046767,-195.89178403,0.00069337,120]
[319849420,1710999046776,-500.0,0.00069337,120]
[319849421,1710999046785,-701.54,0.00069337,120]
[319849423,1710999046794,-567.73,0.00069337,120]
[319849424,1710999046803,-500.0,0.00069337,120]
[319849426,1710999046812,-500.0,0.00069337,120]
[319849428,1710999046821,-500.0,0.00069337,120]
[319849430,1710999046831,-500.0,0.00069337,120]
[319849432,1710999046840,-636.88,0.00069337,120]
[319849434,1710999046849,-1983.99,0.00069338,120]
[319849437,1710999046860,-3960.13,0.00069338,120]
[319849439,1710999046870,-588.55,0.00069338,120]
[319849440,1710999046879,-500.0,0.00069338,120]
[319849443,1710999046889,-480.26309204,0.00069338,120]
[319849444,1710999046898,-500.0,0.00069338,120]
[319849446,1710999046907,-1375.73,0.00069338,120]
[319849448,1710999046916,-1000.0,0.00069528,120]
[319849450,1710999046925,-156.1321514,0.00069624,120]
[319849452,1710999046934,-980.52,0.00069814,120]
[319849454,1710999046943,-1542.78,0.00069814,120]
[319849456,1710999046952,-166.965572,0.00069814,120]
[319849458,1710999046961,-166.965572,0.00069814,120]
[319849460,1710999046970,-878.7,0.00069814,120]
[319849462,1710999046980,-878.38,0.00069814,120]
[319849464,1710999046989,-846.409292,0.00069814,120]
[319849466,1710999046998,-1056.16,0.00069814,120]
[319849468,1710999047007,-846.409292,0.00069814,120]
[319849470,1710999047016,-500.0,0.00069814,120]
[319849472,1710999047025,-500.0,0.00069814,120]
[319849474,1710999047034,-500.0,0.00069814,120]
[319849476,1710999047043,-1137.5,0.00069814,120]
[319849478,1710999047053,-1499.950788,0.00069814,120]
[319849480,1710999047061,-1499.950788,0.00069814,120]
[319849482,1710999047071,-1514.56,0.00069814,120]
[319849484,1710999047081,-579.78,0.00069814,120]
[319849486,1710999047090,-1075.843231,0.00069814,120]
[319849488,1710999047099,-1075.843231,0.00069814,120]
[319849490,1710999047111,-500.0,0.00069814,120]
[319849493,1710999047121,-535.16,0.00069814,120]
[319849494,1710999047130,-10710.12,0.00069815,90]
[319849496,1710999047139,-735.0,0.00069815,120]
[319849498,1710999047148,-1321.76,0.00069815,120]
[319849500,1710999047158,-526.22,0.00069815,120]
[319849502,1710999047168,-150.83408251,0.0006994,2]
[319849504,1710999047177,-151.0,0.0007,120]
[319849506,1710999047186,-1416.64519977,0.0007,120]
[319849508,1710999047195,-150.0,0.0007,120]
[319849510,1710999047204,-151.0,0.00070104,120]
[319849512,1710999047213,-150.70331571,0.00070135,120]
[319849514,1710999047222,-1000.0,0.00070223,120]
[319849516,1710999047231,-255.60626864,0.00070229,7]
[319849518,1710999047240,-165.754134,0.00070651,120]
[319849520,1710999047249,-204.258638,0.00070651,120]
[319849522,1710999047258,-196.499369,0.00070651,120]
[319849524,1710999047267,-193.770946,0.00070651,120]
[319849526,1710999047276,-184.816262,0.00070651,120]
[319849528,1710999047285,-187.425062,0.00070651,120]
[319849530,1710999047293,-184.816262,0.00070651,120]
[319849532,1710999047302,-187.425062,0.00070651,120]
[319849534,1710999047312,-500.0,0.00070895,120]
[319849536,1710999047321,-500.0,0.00070895,120]
[319849538,1710999047330,-500.0,0.00070895,120]
[319849540,1710999047339,-500.0,0.00070895,120]
[319849542,1710999047348,-1000.0,0.00070925,120]
[319849544,1710999047362,-500.0,0.00071232,120]
[319849546,1710999047372,-500.0,0.00071232,120]
[319849548,1710999047382,-4730.87,0.00071232,120]
[319849550,1710999047391,-1499.97,0.00071232,120]
[319849553,1710999047402,-1934.97,0.00071232,120]
[319849555,1710999047412,-2500.46,0.00071232,120]
[319849556,1710999047422,-151.0,0.00071342,120]
[319849558,1710999047432,-1000.0,0.00071635,120]
[319849560,1710999047442,-1155.16,0.00072077,120]
[319849562,1710999047451,-500.0,0.00072077,120]
[319849564,1710999047469,-500.0,0.00072077,120]
[319849574,1710999047543,-500.0,0.00072077,120]
[319849576,1710999047553,-500.0,0.00072077,120]
[319849578,1710999047561,-701.54,0.00072077,120]
[319849580,1710999047570,-567.73,0.00072077,120]
[319849581,1710999047579,-1983.99,0.00072077,120]
[319849583,1710999047589,-588.52906554,0.00072077,120]
[319849586,1710999047599,-3960.13,0.00072077,120]
[319849587,1710999047611,-500.0,0.00072077,120]
[319849589,1710999047620,-500.0,0.00072077,120]
[319849591,1710999047629,-500.0,0.00072077,120]
[319849593,1710999047638,-500.0,0.00072077,120]
[319849595,1710999047649,-636.88,0.00072077,120]
[319849597,1710999047658,-234.15784385,0.00072077,120]
[319849599,1710999047667,-1375.73,0.00072077,120]
[319849600,1710999047678,-1000.0,0.00072351,120]
[319849602,1710999047687,-478.00089245,0.00072454,120]
[319849604,1710999047696,-478.00089245,0.00072454,120]
[319849606,1710999047706,-478.00089245,0.00072454,120]
[319849608,1710999047715,-478.00089245,0.00072454,120]
[319849610,1710999047724,-478.00089245,0.00072454,120]
[319849612,1710999047733,-478.00089245,0.00072454,120]
[319849613,1710999047743,-478.00089245,0.00072454,120]
[319849616,1710999047754,-478.00089245,0.00072454,120]
[319849617,1710999047763,-478.00089245,0.00072454,120]
[319849619,1710999047772,-478.00089245,0.00072454,120]
[319849621,1710999047781,-478.00089245,0.00072454,120]
[319849623,1710999047790,-478.00089245,0.00072454,120]
[319849625,1710999047799,-478.00089245,0.00072454,120]
[319849627,1710999047808,-478.00089245,0.00072454,120]
[319849629,1710999047818,-478.00089245,0.00072454,120]
[319849631,1710999047827,-478.00089245,0.00072454,120]
[319849633,1710999047836,-478.00089245,0.00072454,120]
[319849635,1710999047845,-478.00089245,0.00072454,120]
[319849637,1710999047854,-478.00089245,0.00072454,120]
[319849638,1710999047870,-478.5,0.00072454,120]
[319849640,1710999047880,-1115.36874906,0.00072454,120]
[319849642,1710999047890,-1115.36874906,0.00072454,120]
[319849644,1710999047899,-1115.36874906,0.00072454,120]
[319849646,1710999047909,-1115.36874906,0.00072454,120]
[319849648,1710999047918,-1115.36874906,0.00072454,120]
[319849650,1710999047930,-1115.36874906,0.00072486,120]
[319849652,1710999047939,-980.52,0.00072554,120]
[319849654,1710999047948,-1542.78,0.00072554,120]
[319849656,1710999047957,-878.7,0.00072554,120]
[319849658,1710999047966,-878.38,0.00072554,120]
[319849660,1710999047975,-1056.16,0.00072554,120]
[319849662,1710999047984,-500.0,0.00072554,120]
[319849664,1710999047993,-500.0,0.00072554,120]
[319849665,1710999048002,-500.0,0.00072554,120]
[319849667,1710999048011,-1137.5,0.00072554,120]
[319849669,1710999048020,-1514.56,0.00072554,120]
[319849671,1710999048029,-579.78,0.00072554,120]
[319849673,1710999048038,-500.0,0.00072554,120]
[319849675,1710999048047,-535.16,0.00072554,120]
[319849677,1710999048056,-10710.12,0.00072555,90]
[319849679,1710999048065,-1499.950788,0.00072555,120]
[319849681,1710999048074,-1499.950788,0.00072555,120]
[319849683,1710999048084,-735.0,0.00072555,120]
[319849685,1710999048093,-1075.843231,0.00072555,120]
[319849687,1710999048104,-1321.76,0.00072555,120]
[319849689,1710999048120,-1075.843231,0.00072555,120]
[319849691,1710999048131,-526.22,0.00072555,120]
[319849693,1710999048142,-151.0,0.00072685,120]
[319849694,1710999048153,-151.0,0.00072729,21]
[319849697,1710999048165,-1000.0,0.00073075,120]
[319849698,1710999048175,-1115.36874906,0.00073232,120]
[319849700,1710999048186,-151.0,0.00073634,120]
[319849702,1710999048199,-166.965572,0.00073634,120]
[319849704,1710999048209,-166.965572,0.00073634,120]
[319849706,1710999048219,-846.409292,0.00073634,120]
[319849708,1710999048229,-846.409292,0.00073634,120]
[319849710,1710999048238,-500.0,0.00073635,120]
[319849712,1710999048247,-500.0,0.00073635,120]
[319849714,1710999048256,-500.0,0.00073635,120]
[319849716,1710999048266,-500.0,0.00073635,120]
[319849718,1710999048274,-169.2952613,0.00073699,60]
[319849720,1710999048283,-187.4106781,0.00073699,60]
[319849722,1710999048292,-200.7737784,0.00073699,60]
[319849724,1710999048302,-230.4149296,0.00073699,60]
[319849726,1710999048313,-201.4939044,0.00073699,60]
[319849727,1710999048322,-153.0,0.00073699,60]
[319849729,1710999048331,-153.0,0.00073699,60]
[319849731,1710999048341,-153.0,0.00073699,60]
[319849733,1710999048351,-153.0,0.00073699,60]
[319849735,1710999048364,-201.4939044,0.00073699,60]
[319849737,1710999048373,-153.0,0.00073699,60]
[319849739,1710999048383,-153.0,0.00073699,60]
[319849741,1710999048391,-153.0,0.00073699,60]
[319849743,1710999048402,-1000.0,0.00073805,120]
[319849745,1710999048411,-1786.64,0.00073871,120]
[319849747,1710999048420,-500.0,0.00073972,120]
[319849748,1710999048429,-500.0,0.00073972,120]
[319849750,1710999048439,-4730.87,0.00073972,120]
[319849752,1710999048448,-1499.97,0.00073972,120]
[319849754,1710999048457,-1934.97,0.00073972,120]
[319849756,1710999048467,-2500.46,0.00073972,120]
[319849758,1710999048476,-1115.36874906,0.00073979,120]
[319849760,1710999048486,-151.0,0.00074027,120]
[319849762,1710999048495,-184.816262,0.00074183,120]
[319849764,1710999048504,-187.425062,0.00074183,120]
[319849766,1710999048513,-1000.0,0.00074543,120]
[319849768,1710999048523,-1115.36874906,0.00074725,120]
[319849770,1710999048532,-1155.16,0.00074816,120]
[319849772,1710999048541,-500.0,0.00074816,120]
[319849774,1710999048550,-500.0,0.00074816,120]
[319849776,1710999048559,-500.0,0.00074816,120]
[319849777,1710999048568,-219.66727997,0.00074816,120]
[319849779,1710999048577,-701.54,0.00074816,120]
[319849781,1710999048587,-567.73,0.00074816,120]
[319849783,1710999048596,-500.0,0.00074816,120]
[319849785,1710999048605,-500.0,0.00074816,120]
[319849787,1710999048619,-540.402,0.00074816,120]
[319849789,1710999048628,-636.88,0.00074816,120]
[319849791,1710999048637,-1983.99,0.00074817,120]
[319849793,1710999048647,-3960.13,0.00074817,120]
[319849795,1710999048659,-500.0,0.00074817,120]
[319849797,1710999048668,-1375.73,0.00074817,120]
[319849798,1710999048677,-1000.0,0.00075,100]
[319849800,1710999048687,-6000.0,0.00075,120]
[319849802,1710999048697,-6000.0,0.00075,120]
[319849804,1710999048706,-6000.0,0.000751,120]
[319849806,1710999048715,-290.136268,0.000751,120]
[319849808,1710999048724,-166.965572,0.000751,120]
[319849810,1710999048733,-166.965572,0.000751,120]
[319849812,1710999048743,-846.409292,0.000751,120]
[319849814,1710999048754,-846.409292,0.000751,120]
[319849816,1710999048763,-1148.71810338,0.000752,120]
[319849881,1710999049541,-864.58370038,0.00058854,4]
[319849883,1710999049551,-4851.28189662,0.000752,120]
[319849885,1710999049560,-156.1321514,0.00075284,120]
[319849887,1710999049569,-1000.0,0.00075289,120]
[319849889,1710999049578,-980.52,0.00075294,120]
[319849891,1710999049587,-1542.78,0.00075294,120]
[319849893,1710999049596,-878.7,0.00075294,120]
[319849894,1710999049606,-878.38,0.00075294,120]
[319849896,1710999049617,-1056.16,0.00075294,120]
[319849898,1710999049626,-500.0,0.00075294,120]
[319849900,1710999049635,-500.0,0.00075294,120]
[319849902,1710999049645,-500.0,0.00075294,120]
[319849904,1710999049654,-1137.5,0.00075294,120]
[319849906,1710999049664,-1499.950788,0.00075294,120]
[319849908,1710999049675,-1499.950788,0.00075294,120]
[319849910,1710999049683,-1514.56,0.00075294,120]
[319849912,1710999049694,-579.78,0.00075294,120]
[319849914,1710999049704,-1075.843231,0.00075294,120]
[319849916,1710999049713,-1075.843231,0.00075294,120]
[319849918,1710999049722,-500.0,0.00075294,120]
[319849919,1710999049732,-535.16,0.00075294,120]
[319849921,1710999049742,-638.04467283,0.00075295,90]
[319850320,1710999053628,1240.0,0.00052899,120]
[319850382,1710999054349,500.0,0.00052899,120]
[319850669,1710999057465,200.0,0.0004,2]
[319851275,1710999064965,2475.08,0.00052899,120]
[319851276,1710999074034,7559.75,0.00052899,90]
[319851277,1710999113185,653.68,0.00052899,120]
[319851279,1710999628671,150.00028805,0.0005,120]
[319851281,1710999924428,1056.26636917,0.0005,4]
[319851282,1710999944363,320.72636094,0.0005,4]
[319851283,1711000028229,-154.84515485,0.00051819,4]
[319851284,1711000028250,-8503.35294087,0.00051819,4]
[319851285,1711000028271,-7712.3252146,0.0005182,2]
[319851286,1711000028291,-500.0,0.00052054,120]
[319851287,1711000028313,-183.91308455,0.00052799,14]
[319851288,1711000028337,-21314.99693288,0.00052899,4]
[319851289,1711000028357,-818.24,0.00052899,120]
[319851290,1711000028377,-500.0,0.00052899,120]
[319851291,1711000028398,-500.0,0.00052899,120]
[319851292,1711000028417,-500.0,0.00052899,120]
[319851293,1711000028437,-500.0,0.00052899,120]
[319851294,1711000028456,-758.34,0.00052899,120]
[319851295,1711000028476,-500.0,0.00052899,120]
[319851296,1711000028496,-500.0,0.00052899,120]
[319851297,1711000028516,-500.0,0.00052899,120]
[319851298,1711000028536,-500.0,0.00052899,120]
[319851299,1711000028555,-500.0,0.00052899,120]
[319851300,1711000028575,-500.0,0.00052899,120]
[319851301,1711000028596,-500.0,0.00052899,120]
[319851302,1711000028617,-500.0,0.00052899,120]
[319851303,1711000028638,-500.0,0.00052899,120]
[319851304,1711000028657,-500.0,0.00052899,120]
[319851305,1711000028676,-500.0,0.00052899,120]
[319851306,1711000028696,-2956.8,0.00052899,120]
[319851307,1711000028717,-500.0,0.00052899,120]
[319851308,1711000028737,-937.48,0.00052899,120]
[319851309,1711000028757,-498.45170281,0.00052899,120]
[319851310,1711000028777,-1288.62,0.00052899,120]
[319851311,1711000028797,-500.0,0.00052899,120]
[319851312,1711000028816,-500.0,0.00052899,120]